bitfinex-derivatives/quotes_BNBF0:USTF0_20250329
["timestamp","ask_amount","ask_price","bid_price","bid_amount"]
[1743209595181,1.21211242,622.7,621.68,0.28904263]
[1743209595482,1.21211242,622.69,621.68,0.28904263]
[1743209595686,1.21211242,622.68,621.68,0.28904263]
[1743209595887,1.21211242,622.67,621.68,1.27004263]
[1743209596087,0.2797765,622.71,621.69,0.28904263]
[1743209596088,1.21211242,622.66,621.69,0.28904263]
[1743209596286,1.21211242,622.65,621.69,0.28904263]
[1743209596482,1.21211242,622.64,621.69,0.28904263]
[1743209596684,1.21211242,622.63,621.69,0.28904263]
[1743209596885,1.21211242,622.62,621.69,0.28904263]
[1743209597084,1.21211242,622.61,621.69,0.28904263]
[1743209597283,1.21211242,622.6,621.69,0.28904263]
[1743209597487,1.21211242,622.59,621.69,0.28904263]
[1743209597689,1.21211242,622.58,621.69,0.28904263]
[1743209597888,1.21211242,622.57,621.69,0.28904263]
[1743209598085,1.21211242,622.56,621.69,0.28904263]
[1743209598292,1.21211242,622.55,621.69,0.28904263]
[1743209598485,1.21211242,622.54,621.69,0.28904263]
[1743209598683,1.21211242,622.53,621.69,0.28904263]
[1743209598889,1.21211242,622.52,621.69,0.28904263]
[1743209599090,1.21211242,622.51,621.69,0.28904263]
[1743209599286,1.21211242,622.5,621.69,0.28904263]
[1743209599496,1.21211242,622.49,621.69,0.28904263]
[1743209599687,1.21211242,622.48,621.69,0.28904263]
[1743209599887,1.21211242,622.47,621.69,0.28904263]
[1743209600087,1.21211242,622.46,621.69,0.28904263]
[1743209600391,1.21211242,622.45,621.69,0.28904263]
[1743209600589,1.21211242,622.44,621.69,0.28904263]
[1743209600790,1.21211242,622.43,621.69,0.28904263]
[1743209600990,1.21211242,622.42,621.69,0.28904263]
[1743209601191,1.21211242,622.41,621.69,0.28904263]
[1743209601491,1.21211242,622.4,621.69,0.28904263]
[1743209601691,1.21279484,622.39,621.69,0.28904263]
[1743209601884,1.21279484,622.38,621.69,0.28904263]
[1743209602087,1.21279484,622.37,621.69,0.28904263]
[1743209602289,0.27979562,622.43,621.69,0.28904263]
[1743209602489,1.21280569,622.42,621.69,0.28904263]
[1743209602692,1.21280569,622.41,621.69,0.28904263]
[1743209602893,1.21280569,622.4,621.68,0.981]
[1743209603099,1.21280569,622.39,621.69,0.28900977]
[1743209603293,1.21280569,622.38,621.69,0.28900977]
[1743209603493,1.21280569,622.37,621.69,0.28900977]
[1743209603692,0.32116131,622.74,621.69,0.28900977]
[1743209603996,1.21284529,622.73,621.69,0.28900977]
[1743209604294,1.21284529,622.72,621.69,0.28900977]
[1743209604491,1.21284529,622.71,621.69,0.28900977]
[1743209604692,1.21284529,622.7,621.69,0.28900977]
[1743209604987,1.21284529,622.69,621.69,0.28900977]
[1743209605188,1.21284529,622.68,621.69,0.28900977]
[1743209605392,1.21284529,622.67,621.69,0.28900977]
[1743209605593,1.21284529,622.66,621.69,0.28900977]
[1743209605795,1.21284529,622.65,621.69,0.28900977]
[1743209605997,1.21284529,622.64,621.69,0.28900977]
[1743209606297,1.21284529,622.63,621.69,0.28900977]
[1743209606488,1.21284529,622.62,621.7,1.087]
[1743209606692,1.21284529,622.61,621.71,0.28900977]
[1743209606894,1.21284529,622.6,621.71,0.28900977]
[1743209607190,1.21284529,622.59,621.71,0.28900977]
[1743209607395,1.21284529,622.58,621.71,0.28900977]
[1743209607689,1.21284529,622.57,621.71,0.28900977]
[1743209607891,1.21284529,622.56,621.71,0.28900977]
[1743209608094,1.21284529,622.55,621.7,1.087]
[1743209608295,1.21284529,622.54,621.71,0.2890454]
[1743209608497,1.21284529,622.53,621.72,0.2890454]
[1743209608795,1.21284529,622.52,621.71,0.2890454]
[1743209608990,1.21284529,622.51,621.72,0.2890454]
[1743209609195,1.21284529,622.5,621.71,0.2890454]
[1743209609396,1.21284529,622.49,621.71,0.2890454]
[1743209609596,1.21292778,622.48,621.71,0.2890454]
[1743209609797,1.21292778,622.47,621.71,0.2890454]
[1743209609993,1.21292778,622.46,621.71,0.2890454]
[1743209610196,1.21292778,622.45,621.7,1.087]
[1743209610397,1.21292778,622.44,621.7,1.087]
[1743209610598,1.21292778,622.43,621.7,1.087]
[1743209610898,0.27981474,622.46,621.7,1.087]
[1743209610899,1.21292778,622.42,621.7,1.087]
[1743209611200,1.21292778,622.41,621.71,1.098]
[1743209611398,1.21292778,622.4,621.71,1.098]
[1743209611596,1.21292778,622.39,621.71,1.098]
[1743209611899,1.21292778,622.38,621.71,1.098]
[1743209612099,1.21292778,622.37,621.71,1.098]
[1743209612296,1.21292778,622.36,621.71,1.098]
[1743209612493,1.21292778,622.35,621.71,1.098]
[1743209612800,1.21292778,622.34,621.72,0.877]
[1743209612999,1.21292778,622.33,621.72,0.877]
[1743209613194,1.21292778,622.32,621.72,0.877]
[1743209613396,1.21292778,622.31,621.72,0.877]
[1743209613597,1.21292778,622.3,621.72,0.877]
[1743209613797,1.21292778,622.29,621.72,0.877]
[1743209613997,0.27982712,622.33,621.72,0.877]
[1743209614201,1.21302478,622.32,621.72,0.877]
[1743209614398,1.21302478,622.31,621.72,0.877]
[1743209614598,1.21302478,622.3,621.72,0.877]
[1743209614795,1.21302478,622.29,621.72,0.877]
[1743209615100,1.21302478,622.28,621.72,0.877]
[1743209615301,0.32116131,622.74,621.72,0.877]
[1743209615599,1.21303526,622.73,621.72,0.877]
[1743209615795,1.21303526,622.72,621.73,0.28921206]
[1743209616000,1.21303526,622.71,621.73,0.28921206]
[1743209616200,1.21303526,622.7,621.73,0.28921206]
[1743209616401,1.21303526,622.69,621.73,0.28921206]
[1743209616598,1.21303526,622.68,621.74,1.417]
[1743209616802,1.21303526,622.67,621.74,1.417]
[1743209616998,1.21303526,622.66,621.74,1.417]
[1743209617199,1.21303526,622.65,621.74,1.417]
[1743209617494,1.21303526,622.64,621.74,1.417]
[1743209617698,1.21303526,622.63,621.74,1.417]
[1743209617901,1.21303526,622.62,621.74,1.417]
[1743209618095,1.21303526,622.61,621.74,1.417]
[1743209618298,1.21303526,622.6,621.75,0.28918954]
[1743209618499,1.21303526,622.59,621.74,1.417]
[1743209618701,1.21303526,622.58,621.74,1.417]
[1743209619001,1.21303526,622.57,621.74,1.417]
[1743209619196,1.21303526,622.56,621.74,1.417]
[1743209619394,1.21303526,622.55,621.74,1.417]
[1743209619594,1.21294598,622.54,621.74,1.417]
[1743209619801,1.21294598,622.53,621.75,0.28919228]
[1743209619996,1.21294598,622.52,621.75,0.28919228]
[1743209620202,1.21294598,622.51,621.75,0.28919228]
[1743209620401,1.21294598,622.5,621.75,0.28919228]
[1743209620598,1.21294598,622.49,621.75,0.28919228]
[1743209620799,1.21294598,622.48,621.75,0.28919228]
[1743209620999,1.21294598,622.47,621.75,0.28919228]
[1743209621304,1.21294598,622.46,621.75,0.28919228]
[1743209621507,1.21294598,622.45,621.75,0.28919228]
[1743209621804,1.21294598,622.44,621.75,0.28919228]
[1743209622004,1.21294598,622.43,621.75,0.28919228]
[1743209622206,0.32116131,622.74,621.75,0.28919228]
[1743209622407,0.27976638,622.43,621.75,0.28919228]
[1743209622803,0.32116131,622.74,621.75,0.28919228]
[1743209623000,1.21281929,622.73,621.75,0.28919228]
[1743209623205,1.21281929,622.72,621.75,0.28919228]
[1743209623510,1.21281929,622.71,621.75,0.28919228]
[1743209623703,1.21281929,622.7,621.75,0.28919228]
[1743209623906,1.21281929,622.69,621.75,0.28919228]
[1743209624102,1.21281929,622.68,621.75,0.28919228]
[1743209624315,1.21281929,622.67,621.75,0.28919228]
[1743209624509,1.21281929,622.66,621.75,0.28919228]
[1743209624709,0.27973377,622.72,621.75,0.28919228]
[1743209624710,1.21281929,622.65,621.75,0.28919228]
[1743209624901,1.21281929,622.64,621.75,0.28919228]
[1743209625106,1.21281929,622.63,621.75,0.28919228]
[1743209625404,1.21281929,622.62,621.75,0.28919228]
[1743209625607,1.21281929,622.61,621.75,0.28919228]
[1743209625908,1.21281929,622.6,621.74,1.417]
[1743209626108,1.21281929,622.59,621.75,0.28903203]
[1743209626308,1.21281929,622.58,621.75,0.28903203]
[1743209626509,1.21281929,622.57,621.75,0.28903203]
[1743209626811,1.21281929,622.56,621.75,0.28903203]
[1743209627007,1.21281929,622.55,621.75,0.28903203]
[1743209627207,1.21281929,622.54,621.75,0.28903203]
[1743209627409,1.21281929,622.53,621.75,0.28903203]
[1743209627610,1.21281929,622.52,621.74,1.417]
[1743209627908,1.21281929,622.51,621.75,1.25901362]
[1743209628205,1.21281929,622.5,621.76,0.28901362]
[1743209628409,1.21281929,622.49,621.76,0.28901362]
[1743209628612,0.27974839,622.5,621.76,0.28901362]
[1743209628910,1.2123363,622.49,621.76,0.28901362]
[1743209629212,0.27974839,622.5,621.75,0.97]
[1743209629414,0.27974839,622.5,621.76,0.2890174]
[1743209630011,2.458772,623.7,621.76,0.2890174]
[1743209630311,0.32067727,623.68,621.76,0.2890174]
[1743209630512,1.50756993,623.67,621.76,0.2890174]
[1743209630714,0.32069269,623.65,621.76,0.2890174]
[1743209630915,1.50756993,623.64,621.76,0.2890174]
[1743209631117,0.32070812,623.62,621.75,0.97]
[1743209631317,1.5076068,623.61,621.76,0.28901782]
[1743209631519,0.32072355,623.59,621.76,0.28901782]
[1743209631717,1.5076068,623.58,621.77,0.82]
[1743209632013,0.32073898,623.56,621.78,0.28901782]
[1743209632317,1.5076068,623.55,621.78,0.28901782]
[1743209632516,0.32075441,623.53,621.78,0.28901782]
[1743209632710,1.5076068,623.52,621.78,0.28901782]
[1743209632911,0.32076984,623.5,621.78,0.28901782]
[1743209633113,1.5076068,623.49,621.78,0.28901782]
[1743209633311,0.32078528,623.47,621.78,0.28901782]
[1743209633510,1.5076068,623.46,621.78,0.28901782]
[1743209633717,0.32080071,623.44,621.78,0.28901782]
[1743209633915,1.5076068,623.43,621.78,0.28901782]
[1743209634117,0.32081615,623.41,621.78,0.28901782]
[1743209634316,1.5076068,623.4,621.78,0.28901782]
[1743209634512,0.32083159,623.38,621.78,0.28901782]
[1743209634819,1.5076068,623.37,621.78,0.28901782]
[1743209635018,0.32084703,623.35,621.78,0.28901782]
[1743209635317,1.5076068,623.34,621.78,0.28901782]
[1743209635518,0.32086247,623.32,621.78,0.28901782]
[1743209635817,1.5076068,623.31,621.78,0.28901782]
[1743209636018,0.32087792,623.29,621.78,0.28901782]
[1743209636218,1.5076068,623.28,621.78,0.28901782]
[1743209636413,1.82849501,623.27,621.78,0.28901782]
[1743209636713,1.82850016,623.26,621.78,0.28901782]
[1743209636918,1.5076068,623.25,621.78,0.28901782]
[1743209637117,1.5076068,623.24,621.78,0.28901782]
[1743209637314,1.2121229,623.23,621.78,0.28901782]
[1743209637519,1.82832182,623.22,621.78,0.28901782]
[1743209637720,1.82832697,623.21,621.78,0.28901782]
[1743209637913,1.50740786,623.2,621.78,0.28901782]
[1743209638118,1.82833727,623.19,621.78,0.28901782]
[1743209638413,1.82834242,623.18,621.78,0.28901782]
[1743209638618,1.82834757,623.17,621.78,0.28901782]
[1743209638918,1.82835272,623.16,621.78,0.28901782]
[1743209639115,0.61623497,623.15,621.78,0.28901782]
[1743209639321,1.82847856,623.14,621.78,0.28901782]
[1743209639614,1.53319875,623.13,621.78,0.28901782]
[1743209639820,2.458772,623.65,621.78,0.28901782]
[1743209639821,1.5332039,623.12,621.78,0.28901782]
[1743209640021,1.53320905,623.11,621.79,0.28894417]
[1743209640223,1.5332142,623.1,621.78,0.28894417]
[1743209640422,1.21223844,623.09,621.79,0.28894417]
[1743209640620,1.21223844,623.08,621.78,0.28894417]
[1743209640816,1.21233338,623.07,621.79,0.28894417]
[1743209641018,1.21233338,623.06,621.78,0.28894417]
[1743209641322,1.21233338,623.05,621.78,0.28894417]
[1743209641525,1.21233338,623.04,621.78,0.28894417]
[1743209641823,1.21233338,623.03,621.78,0.28894417]
[1743209642118,1.21233338,623.02,621.78,0.28894417]
[1743209642323,1.21233338,623.01,621.78,0.28894417]
[1743209642624,1.21233338,623.0,621.78,0.28894417]
[1743209642921,1.21233338,622.99,621.78,1.45194417]
[1743209643122,1.21233338,622.98,621.79,0.28894417]
[1743209643423,1.21233338,622.97,621.79,0.28894417]
[1743209643625,1.21233338,622.96,621.79,0.28894417]
[1743209643820,1.21233338,622.95,621.79,0.28894417]
[1743209644017,1.21233338,622.94,621.79,0.28894417]
[1743209644223,1.21233338,622.93,621.79,0.28894417]
[1743209644522,1.21233338,622.92,621.79,0.28894417]
[1743209644722,1.21233338,622.91,621.78,1.163]
[1743209644919,1.21233338,622.9,621.79,0.28895648]
[1743209645122,1.21233338,622.89,621.79,0.28895648]
[1743209645421,1.21233338,622.88,621.79,0.28895648]
[1743209645621,1.21233338,622.87,621.79,0.28895648]
[1743209645823,1.21233338,622.86,621.79,1.68195648]
[1743209646123,1.21233338,622.85,621.8,0.28895648]
[1743209646323,0.27970005,622.85,621.8,0.28895648]
[1743209646523,1.21325762,622.84,621.8,0.28895648]
[1743209646825,1.21325762,622.83,621.8,0.28895648]
[1743209647023,1.21325762,622.82,621.8,0.28895648]
[1743209647225,1.21325762,622.81,621.8,0.28895648]
[1743209647519,1.21325762,622.8,621.8,0.28895648]
[1743209647725,1.21325762,622.79,621.8,0.28895648]
[1743209648023,1.21325762,622.78,621.8,0.28895648]
[1743209648223,1.21325762,622.77,621.79,1.393]
[1743209648425,1.21325762,622.76,621.8,0.2889716]
[1743209648624,1.21325762,622.75,621.8,0.2889716]
[1743209648922,1.21325762,622.74,621.8,0.2889716]
[1743209649224,1.21325762,622.73,621.8,0.2889716]
[1743209649423,0.27970791,622.78,621.8,0.2889716]
[1743209649424,1.21325762,622.72,621.8,1.2369716]
[1743209649625,1.21325762,622.71,621.81,0.2889716]
[1743209649828,1.21325762,622.7,621.81,0.2889716]
[1743209650124,1.21325762,622.69,621.82,0.28905619]
[1743209650325,1.2131095,622.68,621.81,0.28905619]
[1743209650524,1.2131095,622.67,621.83,0.28905619]
[1743209650727,1.2131095,622.66,621.84,0.28905619]
[1743209650926,1.2131095,622.65,621.85,0.28905619]
[1743209651128,1.2131095,622.64,621.81,0.28905619]
[1743209651326,1.2131095,622.63,621.82,0.28905619]
[1743209651527,1.2131095,622.62,621.81,0.28905619]
[1743209651732,1.2131095,622.61,621.8,0.948]
[1743209651930,1.2131095,622.6,621.81,0.28908556]
[1743209652125,1.2131095,622.59,621.81,0.28908556]
[1743209652324,1.21308283,622.58,621.81,0.28908556]
[1743209652529,1.21308283,622.57,621.81,0.28908556]
[1743209652723,1.21308283,622.56,621.81,0.28908556]
[1743209652923,1.21308283,622.55,621.81,0.28908556]
[1743209653130,1.21308283,622.54,621.81,0.28908556]
[1743209653430,1.21308283,622.53,621.81,0.28908556]
[1743209653629,1.21308283,622.52,621.81,0.28908556]
[1743209653928,1.21308283,622.51,621.81,0.28908556]
[1743209654130,0.32097576,623.1,621.81,0.28908556]
[1743209654429,1.21308465,623.09,621.81,0.28908556]
[1743209654630,1.21308465,623.08,621.81,0.28908556]
[1743209654828,1.21308465,623.07,621.81,0.28908556]
[1743209655029,1.21308465,623.06,621.81,0.28908556]
[1743209655229,1.21308465,623.05,621.8,0.948]
[1743209655530,1.21308465,623.04,621.81,0.28909194]
[1743209655724,1.21308465,623.03,621.81,0.28909194]
[1743209655928,1.21308465,623.02,621.81,0.28909194]
[1743209656223,1.21308465,623.01,621.81,0.28909194]
[1743209656429,1.21308465,623.0,621.81,0.28909194]
[1743209656625,1.21308465,622.99,621.81,0.28909194]
[1743209656827,1.21308465,622.98,621.81,1.36509194]
[1743209657027,1.21308465,622.97,621.82,0.28906475]
[1743209657231,1.21308465,622.96,621.82,0.28906475]
[1743209657432,0.32097576,623.1,621.82,0.28906475]
[1743209657433,1.21308465,622.95,621.82,0.28906475]
[1743209657731,1.21308465,622.94,621.82,0.28906475]
[1743209657930,1.21308465,622.93,621.82,0.28906475]
[1743209658124,1.21308465,622.92,621.82,0.28906475]
[1743209658329,1.21308465,622.91,621.82,0.28906475]
[1743209658529,1.21308465,622.9,621.82,0.28906475]
[1743209658732,1.21308465,622.89,621.82,0.28906475]
[1743209659031,1.21308465,622.88,621.82,0.28906475]
[1743209659232,1.21308465,622.87,621.82,0.28906475]
[1743209659433,1.21308465,622.86,621.82,0.28906475]
[1743209659629,1.21308465,622.85,621.82,0.28906475]
[1743209659829,1.21308465,622.84,621.82,0.28906475]
[1743209660030,1.21308465,622.83,621.82,0.28906475]
[1743209660226,0.32097576,623.1,621.82,0.28906475]
[1743209660227,1.21308465,622.82,621.82,0.28906475]
[1743209660427,1.21308465,622.81,621.82,0.28906475]
[1743209660630,1.21308465,622.8,621.82,0.28906475]
[1743209660827,1.21308465,622.79,621.82,0.28906475]
[1743209661027,1.21308465,622.78,621.82,0.28906475]
[1743209661230,1.21308465,622.77,621.82,0.28906475]
[1743209661435,1.21308465,622.76,621.82,0.28906475]
[1743209661633,1.21308465,622.75,621.82,0.28906475]
[1743209661834,1.21308465,622.74,621.82,0.28906475]
[1743209662031,1.21308465,622.73,621.82,0.28906475]
[1743209662336,1.21308465,622.72,621.83,0.28905871]
[1743209662530,1.21308465,622.71,621.84,0.28905871]
[1743209662732,1.21308465,622.7,621.85,0.28905871]
[1743209662933,1.21308465,622.69,621.82,0.28905871]
[1743209663134,1.21308465,622.68,621.83,0.28905871]
[1743209663433,1.21308465,622.67,621.84,0.28905871]
[1743209663631,1.21308465,622.66,621.82,0.28905871]
[1743209663932,1.21308465,622.65,621.83,0.28905871]
[1743209664136,1.21308465,622.64,621.82,0.28905871]
[1743209664328,1.21308465,622.63,621.83,0.28905871]
[1743209664535,0.27970791,622.64,621.84,0.32162614]
[1743209664735,1.21263028,622.63,621.85,0.28905871]
[1743209664930,0.27970791,622.64,621.86,0.32161579]
[1743209665135,1.21264956,622.63,621.87,0.28905871]
[1743209665331,1.21264956,622.62,621.87,0.61066933]
[1743209665632,0.27970791,622.64,621.88,0.28905871]
[1743209665832,1.21259466,622.63,621.88,0.28905871]
[1743209666039,1.21259466,622.62,621.88,0.28905871]
[1743209666239,1.21259466,622.61,621.89,0.9]
[1743209666436,0.32097576,623.1,621.9,0.28905871]
[1743209666636,1.21257642,623.09,621.9,0.28905871]
[1743209666841,1.21257642,623.08,621.9,0.28905871]
[1743209667041,1.21257642,623.07,621.9,0.28905871]
[1743209667239,1.21257642,623.06,621.9,0.28905871]
[1743209667442,1.21257642,623.05,621.9,0.28905871]
[1743209667643,1.21257642,623.04,621.9,0.28905871]
[1743209667839,1.21257642,623.03,621.9,0.28905871]
[1743209668041,0.27963487,623.07,621.9,0.28905871]
[1743209668042,1.21257642,623.02,621.9,0.28905871]
[1743209668343,1.21250224,623.01,621.9,0.28905871]
[1743209668544,1.21250224,623.0,621.9,0.28905871]
[1743209668744,1.21250224,622.99,621.9,0.28905871]
[1743209668945,1.21250224,622.98,621.9,0.28905871]
[1743209669146,1.21250224,622.97,621.9,0.28905871]
[1743209669348,1.21250224,622.96,621.9,0.28905871]
[1743209669546,1.21250224,622.95,621.9,0.28905871]
[1743209669747,1.21250224,622.94,621.9,0.28905871]
[1743209669946,1.21250224,622.93,621.9,0.28905871]
[1743209670147,1.21255835,622.92,621.9,0.28905871]
[1743209670448,1.21255835,622.91,621.9,0.28905871]
[1743209670747,1.21255835,622.9,621.9,0.28905871]
[1743209670947,1.21255835,622.89,621.9,0.28905871]
[1743209671140,1.21255835,622.88,621.91,0.28914455]
[1743209671341,1.21255835,622.87,621.9,0.28914455]
[1743209671541,1.21255835,622.86,621.91,0.28914455]
[1743209671750,1.21255835,622.85,621.91,0.28914455]
[1743209671950,1.21255835,622.84,621.92,0.28914455]
[1743209672153,1.21255835,622.83,621.9,0.28914455]
[1743209672347,1.21255835,622.82,621.91,0.28914455]
[1743209672551,1.21255835,622.81,621.92,0.28914455]
[1743209672754,1.21255835,622.8,621.93,0.28914455]
[1743209672950,1.21255835,622.79,621.9,0.28914455]
[1743209673252,1.21255835,622.78,621.9,0.28914455]
[1743209673459,1.21255835,622.77,621.9,0.28914455]
[1743209673659,1.21255835,622.76,621.9,0.28914455]
[1743209673859,1.21255835,622.75,621.9,0.28914455]
[1743209674156,1.21355948,622.74,621.9,0.28914455]
[1743209674358,1.21355948,622.73,621.9,0.28914455]
[1743209674561,1.21355948,622.72,621.9,0.28914455]
[1743209674752,1.21355948,622.71,621.9,0.28914455]
[1743209674956,0.27968543,622.8,621.9,0.28914455]
[1743209674957,1.21355948,622.7,621.9,0.28914455]
[1743209675152,1.21355948,622.69,621.9,1.11714455]
[1743209675359,1.21355948,622.68,621.91,0.28914455]
[1743209675559,1.21355948,622.67,621.91,0.28914455]
[1743209675860,1.21355948,622.66,621.91,0.28914455]
[1743209676059,1.21355948,622.65,621.91,0.28914455]
[1743209676258,1.21355948,622.64,621.91,0.28914455]
[1743209676457,1.21355948,622.63,621.92,0.28927582]
[1743209676656,1.21355948,622.62,621.91,0.28927582]
[1743209676858,1.21355948,622.61,621.92,0.28927582]
[1743209677058,1.21355948,622.6,621.91,0.28927582]
[1743209677362,1.21355948,622.59,621.92,0.28927582]
[1743209677563,1.21355948,622.58,621.93,0.28927582]
[1743209677856,1.21355948,622.57,621.94,0.28927582]
[1743209678059,1.21355948,622.56,621.9,0.828]
[1743209678358,1.21355948,622.55,621.91,0.28932017]
[1743209678558,1.21355948,622.54,621.91,0.28932017]
[1743209678761,1.21355948,622.53,621.91,0.28932017]
[1743209678957,1.21355948,622.52,621.91,0.28932017]
[1743209679153,1.21355948,622.51,621.91,0.28932017]
[1743209679461,1.21355948,622.5,621.91,0.28932017]
[1743209679657,1.21355948,622.49,621.91,0.28932017]
[1743209679859,1.21355948,622.48,621.91,0.28932017]
[1743209680155,1.21355948,622.47,621.91,1.46332017]
[1743209680354,1.21572479,622.46,621.92,0.28932017]
[1743209680554,0.27971691,622.51,621.92,0.28932017]
[1743209680758,1.21572479,622.5,621.92,0.28932017]
[1743209680958,1.21572479,622.49,621.92,0.28932017]
[1743209681158,1.21572479,622.48,621.92,0.28932017]
[1743209681362,1.21572479,622.47,621.92,0.28932017]
[1743209681561,1.21572479,622.46,621.92,0.28932017]
[1743209681761,1.21572479,622.45,621.92,0.28932017]
[1743209681962,0.32097576,623.1,621.92,0.28932017]
[1743209682163,1.51129756,623.09,621.92,0.28932017]
[1743209682365,1.51129756,623.08,621.92,0.28932017]
[1743209682562,1.51129756,623.07,621.92,0.28932017]
[1743209682764,1.2160448,623.06,621.92,0.28932017]
[1743209683065,1.2160448,623.05,621.92,0.28932017]
[1743209683264,1.2160448,623.04,621.92,0.28932017]
[1743209683465,1.2160448,623.03,621.92,0.28932017]
[1743209683665,1.2160448,623.02,621.92,0.28932017]
[1743209683965,1.2160448,623.01,621.92,0.28932017]
[1743209684165,1.2160448,623.0,621.91,1.89]
[1743209684364,1.2160448,622.99,621.91,1.89]
[1743209684661,1.2160448,622.98,621.91,1.89]
[1743209684866,1.53708754,622.97,621.91,1.89]
[1743209685065,1.5370927,622.96,621.91,1.89]
[1743209685366,1.2160448,622.95,621.91,1.89]
[1743209685559,1.2160448,622.94,621.91,1.89]
[1743209685760,1.2160448,622.93,621.91,1.89]
[1743209685965,1.2160448,622.92,621.91,1.89]
[1743209686259,0.3210479,622.96,621.91,1.89]
[1743209686260,1.2160448,622.91,621.91,1.89]
[1743209686462,1.2160448,622.9,621.91,1.89]
[1743209686666,1.2160448,622.89,621.91,1.89]
[1743209686862,1.2160448,622.88,621.91,1.89]
[1743209687065,1.2160448,622.87,621.91,1.89]
[1743209687261,1.2160448,622.86,621.91,1.89]
[1743209687567,1.2160448,622.85,621.91,1.89]
[1743209687761,1.2160448,622.84,621.91,1.89]
[1743209687964,1.2160448,622.83,621.91,1.89]
[1743209688162,1.2160448,622.82,621.91,1.89]
[1743209688468,1.2160448,622.81,621.91,1.89]
[1743209688669,1.2160448,622.8,621.91,1.89]
[1743209688866,1.2160448,622.79,621.91,1.89]
[1743209689065,1.2160448,622.78,621.91,1.89]
[1743209689265,1.2160448,622.77,621.91,1.89]
[1743209689469,1.2160448,622.76,621.91,1.89]
[1743209689661,1.2160448,622.75,621.91,1.89]
[1743209689863,1.2160448,622.74,621.91,1.89]
[1743209690168,1.2160448,622.73,621.91,1.89]
[1743209690366,1.2160448,622.72,621.91,1.89]
[1743209690566,1.2160448,622.71,621.91,1.89]
[1743209690866,1.2160448,622.7,621.91,1.89]
[1743209691063,1.2160448,622.69,621.91,1.89]
[1743209691263,1.2160448,622.68,621.91,2.806]
[1743209691461,1.21521993,622.67,621.91,2.806]
[1743209691664,1.21521993,622.66,621.91,2.806]
[1743209691862,1.21521993,622.65,621.91,2.806]
[1743209692064,1.21521993,622.64,621.91,2.806]
[1743209692267,1.21521993,622.63,621.91,2.806]
[1743209692468,1.21521993,622.62,621.91,2.806]
[1743209692662,1.21521993,622.61,621.91,2.806]
[1743209692864,1.21521993,622.6,621.91,2.806]
[1743209693065,1.21521993,622.59,621.91,2.806]
[1743209693266,1.21521993,622.58,621.91,2.806]
[1743209693469,1.21521993,622.57,621.91,2.806]
[1743209693669,1.21521993,622.56,621.91,2.806]
[1743209693870,0.3210479,622.96,621.91,2.806]
[1743209693871,1.21521993,622.55,621.91,2.806]
[1743209694072,1.21521993,622.54,621.91,2.806]
[1743209694271,1.21521993,622.53,621.91,2.806]
[1743209694474,1.21521993,622.52,621.91,2.806]
[1743209694773,1.21521993,622.51,621.91,2.806]
[1743209695073,1.21521993,622.5,621.91,2.806]
[1743209695273,1.21521993,622.49,621.91,2.806]
[1743209695467,1.21521993,622.48,621.91,2.806]
[1743209695671,1.21521993,622.47,621.91,2.806]
[1743209695867,1.21521993,622.46,621.91,2.806]
[1743209696072,1.21521993,622.45,621.91,2.806]
[1743209696272,1.21521993,622.44,621.91,2.806]
[1743209696472,1.21521993,622.43,621.91,2.806]
[1743209696670,1.21521993,622.42,621.91,2.806]
[1743209696868,1.21521993,622.41,621.91,2.806]
[1743209697068,1.21521993,622.4,621.91,2.806]
[1743209697274,1.21521993,622.39,621.91,2.806]
[1743209697569,1.21521993,622.38,621.91,2.806]
[1743209697773,1.21453253,622.37,621.91,2.806]
[1743209697975,1.21453253,622.36,621.91,2.806]
[1743209698273,0.27976863,622.4,621.91,2.806]
[1743209698474,1.21444532,622.39,621.91,2.806]
[1743209698674,1.21444532,622.38,621.91,2.806]
[1743209698874,1.21444532,622.37,621.91,2.806]
[1743209699175,0.3210479,622.96,621.91,2.806]
[1743209699370,1.21440831,622.95,621.91,2.806]
[1743209699569,1.21440831,622.94,621.91,2.806]
[1743209699774,1.21437659,622.93,621.91,2.806]
[1743209699970,1.21437659,622.92,621.91,2.806]
[1743209700174,1.21437659,622.91,621.91,2.806]
[1743209700476,1.21437659,622.9,621.91,2.806]
[1743209700675,1.21437659,622.89,621.91,2.806]
[1743209700871,1.21437659,622.88,621.91,2.806]
[1743209701073,1.21437659,622.87,621.91,2.806]
[1743209701270,1.21437659,622.86,621.91,2.806]
[1743209701573,1.21437659,622.85,621.91,2.806]
[1743209701773,1.21437659,622.84,621.91,2.806]
[1743209702075,1.21437659,622.83,621.91,2.806]
[1743209702270,1.21437659,622.82,621.91,2.806]
[1743209702474,1.21437659,622.81,621.91,2.806]
[1743209702673,1.21437659,622.8,621.91,2.806]